Cogmind - Beta 15 @@@ ROGUE MODE // 2025.07.11 @ 11:45:06 Player: Infomantis Result: Destroyed by IT-J5P(E) with Heavy Battle Rifle Performance ------------- Evolutions (3) 1500 Regions Visited (13) 2600 Robots Destroyed (128) 640 Value Destroyed (3625) 3625 Prototype IDs (44) 880 Alien Tech Used (0) 0 Bonus (1749) 1749 TOTAL SCORE: 10994 Bonus ------- High Alert Combat Kills 201 Follower Combat Kills 548 Entered Garrisons 200 Used RIF Installer 500 Aligned with FarCom 300 Cogmind --------- Core Integrity 0/700 Matter 290/300 Energy 99/100 System Corruption 2% Temperature Cool (0) Movement Core (50) Location -7/Scraptown Parts ------- > --- POWER (1) -------- (None) > --- PROPULSION (6) --- (None) > --- UTILITY (4) ------ Improved Melee Analysis Suite Core Analyzer > --- WEAPON (2) ------- (None) > --- INVENTORY (5) ---- Medium Matter Pod (100) Authchip [Weapon] Tech Extrapolator Latent Energy Streamer Precision Grenade Launcher Peak State ------------ > --- POWER ------------ Micro Nuclear Core > --- PROPULSION ------- Light Treads Gravmag System Gravmag System Gravmag System Gravmag System Gravmag System > --- UTILITY ---------- High-capacity Storage Unit Advanced Weight Redist. System Core Analyzer Hardened Light Armor Plating > --- WEAPON ----------- Latent Energy Streamer Mining Claw > --- INVENTORY -------- Improved Deuterium Engine Medium Storage Unit Compact Battery Medium Matter Pod Weight Redist. System Improved Power Shielding Improved Medium Armor Plating Authchip [Weapon] Improved Field Recycling Unit EM Pulse Cannon Precision Grenade Launcher Precision Grenade Launcher Precision Grenade Launcher CPS Tube Powered Hammer [Rating: 51] Favorites ----------- Power Micro Nuclear Core Engine Deuterium Engine Power Core Micro Nuclear Core Propulsion Light Treads Treads Light Treads Wheel Compact Wheel Hover Unit Gravmag System Utility Seismic Detector Device Seismic Detector Storage Medium Storage Unit Processor Corruption Screen Hackware Hacking Suite Protection Backup Plating III Weapon EM Shotgun Energy Gun EM Shotgun Energy Cannon EM Pulse Cannon Launcher Advanced EMP Blaster Special Weapon CPS Tube Impact Weapon Powered Hammer Slashing Weapon Mining Claw Special Melee Weapon Datajack Build | -11 -10 -10 -9 -9 -9 -8 -8 -8 -8 -7 -7 -7 -7 ------- Run | Yrd Mat Min Mat Min Exi Min Mat Gar Mat Fac Sto Rec Scr Slots Evolved 6 | . . . 2 . . . 2 . . 2 . . . Power . | . . . . . . . . . . . . . . Propulsion 4 | . . . 1 . . . 1 . . 2 . . . Utility 2 | . . . 1 . . . 1 . . . . . . Weapon . | . . . . . . . . . . . . . . Parts Attached 100 | 6 5 3 9 . 2 . 7 6 8 15 18 11 10 Power 8 | 1 . 1 1 . . . 1 . 1 1 . 1 1 Engine 5 | 1 . 1 1 . . . 1 . . . . . 1 Core 3 | . . . . . . . . . 1 1 . 1 . Reactor . | . . . . . . . . . . . . . . Propulsion 37 | 2 2 . 3 . . . 2 4 1 4 9 8 2 Treads 14 | 2 1 . 2 . . . 1 3 . 1 3 1 . Leg 1 | . . . . . . . . . . . . . 1 Wheel 15 | . 1 . 1 . . . 1 1 . 2 6 2 1 Hover 7 | . . . . . . . . . 1 1 . 5 . Flight . | . . . . . . . . . . . . . . Utility 26 | 2 1 2 2 . 1 . 2 . 3 5 3 1 4 Device 7 | 1 1 1 . . . . . . . 2 1 . 1 Storage 6 | 1 . 1 . . 1 . . . . 1 1 1 . Processor 6 | . . . . . . . 1 . 1 2 1 . 1 Hackware 1 | . . . 1 . . . . . . . . . . Protection 6 | . . . 1 . . . 1 . 2 . . . 2 Artifact . | . . . . . . . . . . . . . . Weapon 29 | 1 2 . 3 . 1 . 2 2 3 5 6 1 3 Energy Gun 14 | 1 2 . 3 . . . 1 . 1 4 1 . 1 Energy Cannon 3 | . . . . . . . 1 . 1 . 1 . . Ballistic Gun . | . . . . . . . . . . . . . . Ballistic Cannon . | . . . . . . . . . . . . . . Launcher 6 | . . . . . . . . 2 1 . 3 . . Special Weapon 1 | . . . . . . . . . . . . . 1 Impact Weapon 2 | . . . . . . . . . . 1 1 . . Slashing Weapon 2 | . . . . . . . . . . . . 1 1 Piercing Weapon . | . . . . . . . . . . . . . . Special Melee Weapon 1 | . . . . . 1 . . . . . . . . Unidentified Prototypes 5 | . . . . . . . . . . . 5 . . Corrupted Parts 1 | . . . . . . . . . . 1 . . . System Corruption 5 | . . . . . . . . . . 5 . . . Parts Lost 44 | . 4 1 1 . . . 3 1 11 2 6 7 8 Power 2 | . . . . . . . . . 1 . . . 1 Propulsion 27 | . 1 . . . . . 2 1 4 2 4 7 6 Utility 4 | . 1 . . . . . . . 2 . . . 1 Weapon 11 | . 2 1 1 . . . 1 . 4 . 2 . . Highest Loss Streak 11 | . 3 1 1 . . . 3 1 11 2 5 6 8 To Critical Strikes 2 | . . . . . . . . . 1 . . . 1 Average Backups 11 | 3 7 7 9 9 10 15 14 15 14 8 9 10 15 Power 1 | 1 1 2 1 1 1 4 4 4 3 1 1 1 . Propulsion . | . 1 1 1 1 1 1 . . . . . . . Utility 5 | . 3 4 3 4 4 6 6 7 6 3 3 5 7 Weapon 3 | . . . 2 2 3 3 3 4 4 3 4 4 5 Tool/Special . | . . . . . . . . . . . . . . Unused Backups 38 | . 4 1 2 . . . 2 1 10 6 2 . 10 Power 5 | . . . 1 . . . . . 2 1 1 . . Propulsion 3 | . 2 . . . . . . . . . . . 1 Utility 17 | . 1 1 1 . . . 2 1 5 1 . . 5 Weapon 13 | . 1 . . . . . . . 3 4 1 . 4 Tool/Special . | . . . . . . . . . . . . . . Average Slot Usage (%) 89 | . 94 74 89 100 100 100 86 96 93 58 74 82 96 Engine 7 | . 14 14 11 11 11 11 9 9 3 . . . 3 Core 2 | . . . . . . . . . 4 6 7 7 3 Treads 17 | . 27 28 21 22 22 22 10 20 25 1 9 13 6 Wheel 7 | . . . 9 11 11 11 16 11 8 3 15 10 . Hover 5 | . . . . . . . . . . 6 . 8 37 Device 9 | . 12 13 11 11 11 11 9 9 8 6 7 7 6 Storage 9 | . 14 14 11 11 11 11 9 9 8 5 7 7 6 Processor 6 | . . . . . . . 6 9 9 14 12 15 12 Protection 5 | . . . 6 11 11 11 9 9 8 . . . 3 Energy Gun 10 | . 25 3 16 22 14 18 16 7 8 6 5 . . Energy Cannon 1 | . . . . . . . 1 9 7 . . . . Impact Weapon 2 | . . . . . . . . . . 4 4 7 6 Special Melee Weapon 1 | . . . . . 7 3 . . . . . . . Peak Build Rating 51 | 8 10 6 16 16 18 19 26 29 28 35 35 47 51 Average Rating 23 | 5 9 5 13 16 16 18 23 27 26 27 28 33 45 On Entrance 18 | . 8 6 6 16 16 18 19 26 28 11 26 35 47 Naked Turns . | . . . . . . . . . . . . . . Heaviest Build 60 | 13 15 14 28 28 36 38 45 48 45 32 38 51 60 Greatest Support 69 | 40 40 40 40 40 40 40 40 62 62 26 56 69 54 Greatest Overweight (x) 3 | . . . 2 1 . . 2 3 . 2 3 1 1 Average Overweight (x) . | . . . . . . . . 2 . . . . . Largest Inventory Capacity 20 | 8 8 10 10 10 15 15 15 15 15 10 10 20 20 Average Capacity 12 | 7 8 8 10 10 11 15 15 15 14 8 10 12 18 Most Carried 20 | 6 8 10 10 9 15 15 15 15 15 10 10 14 20 Average Carried 11 | 3 7 7 9 9 10 15 14 14 14 8 9 10 15 Final Capacity 20 | 8 8 10 10 10 15 15 15 15 5 10 10 20 5 Final Carried 15 | 5 8 10 9 9 15 15 15 15 5 10 10 14 5 Class Distribution -------------------- 92% | Mutant 5% | Scavenger-Mutant Dominant Class ---------------- Mutant | -10/Materials Mutant | -10/Mines Mutant | -9/Materials Mutant | -9/Mines Mutant | -9/Exiles Mutant | -8/Mines Mutant | -8/Materials Mutant | -8/Garrison Mutant | -8/Materials Mutant | -7/Factory Mutant | -7/Storage Mutant | -7/Recycling Mutant | -7/Scraptown Resources | -11 -10 -10 -9 -9 -9 -8 -8 -8 -8 -7 -7 -7 -7 ----------- Run | Yrd Mat Min Mat Min Exi Min Mat Gar Mat Fac Sto Rec Scr Matter Collected 2056 | 260 244 36 110 . . 20 50 414 50 278 189 246 159 Remotely . | . . . . . . . . . . . . . . Salvage Created 5038 | 215 708 . 435 143 . . 267 961 482 348 661 756 62 Parts 240 | 18 45 1 30 9 . . 16 35 25 5 30 20 6 Haulers Intercepted 3 | . 2 . . . . . . . . . 1 . . Recyclers Shooed 3 | 1 . . . . . . . . 1 . . 1 . Parts Field Recycled 25 | . . . . . . . . . . 12 13 . . Retrieved Matter 425 | . . . . . . . . . . 165 260 . . Parts Self-Destructed . | . . . . . . . . . . . . . . Prevented . | . . . . . . . . . . . . . . Kills | -11 -10 -10 -9 -9 -9 -8 -8 -8 -8 -7 -7 -7 -7 ------- Run | Yrd Mat Min Mat Min Exi Min Mat Gar Mat Fac Sto Rec Scr Combat Hostiles Destroyed 78 | . 16 1 11 5 . . 4 19 13 2 6 1 . Melee 3 | . 1 1 . . . . . . . . . 1 . Guns 33 | . 10 . 11 5 . . 3 . 3 . 1 . . Cannons 9 | . . . . . . . . 6 3 . . . . AOE 28 | . 5 . . . . . 1 11 7 . 4 . . Classes Destroyed 16 | 3 5 . 2 . . . 1 2 1 1 . . 1 Worker 10 | 1 1 . 1 . . . . . 1 4 2 . . Builder 5 | . . . . . . . 1 . 1 . 1 2 . Tunneler 5 | 5 . . . . . . . . . . . . . Hauler 3 | . 2 . . . . . . . . . 1 . . Recycler 15 | 1 . . . . . . . . . 3 3 8 . Mechanic 2 | . . . . . . . . . 1 . 1 . . Operator 3 | . 1 . . . . . . . 2 . . . . Watcher 6 | . 1 . 1 . . . 1 . 2 . 1 . . Swarmer 16 | . 6 1 4 3 . . . . 2 . . . . Grunt 46 | . 10 . 5 2 . . 3 13 8 . 4 . 1 Brawler 3 | . . . 1 . . . . 2 . . . . . Duelist 2 | . . . . . . . . 1 1 . . . . Sentry 10 | . . . 1 . . . 1 2 2 1 2 1 . Hunter 1 | . . . . . . . . 1 . . . . . Programmer 1 | . . . . . . . . . . 1 . . . Scientist 1 | . . . . . . . . . . . . . 1 Best Kill Streak 9 | 3 3 1 4 3 . . 4 3 9 4 5 4 1 Combat Bots Only 6 | . 3 1 4 3 . . 3 3 6 1 4 1 . Max Kills in Single Turn 4 | 1 2 1 3 2 . . 1 3 2 1 4 1 1 Gunslinging 1 | . . . 1 1 . . . . . . . . . Exploded 3 | . 2 . . . . . 1 3 2 . 3 . . Melee 1 | . 1 1 . . . . . . . . . 1 . Uniques/NPCs Destroyed . | . . . . . . . . . . . . . . Combat | -11 -10 -10 -9 -9 -9 -8 -8 -8 -8 -7 -7 -7 -7 -------- Run | Yrd Mat Min Mat Min Exi Min Mat Gar Mat Fac Sto Rec Scr Hostile Shots Fired 753 | . 73 7 83 11 . . 32 38 105 34 117 138 115 Missed 241 | . 22 2 21 6 . . 10 17 28 10 50 39 36 Hits 512 | . 51 5 62 5 . . 22 21 77 24 67 99 79 Melee 16 | . . . . . . . . . . . . . 16 Projectile 496 | . 51 5 62 5 . . 22 21 77 24 67 99 63 Critical Strikes 17 | . 2 . . . . . . 1 11 1 . . 2 Damage Taken 5907 | 10 593 41 645 45 . . 329 315 1401 240 673 738 877 Core 1304 | . 141 . 79 11 . . 79 31 250 60 103 151 399 Absorbed by Shields 18 | . . . . . . . . 18 . . . . . Regen/Repaired (Parts) 141 | . 35 . 106 . . . . . . . . . . Core Remaining (%) 63 | 100 . 43 . . . 77 . . 34 . . . . Volleys Fired 222 | 26 47 4 25 8 . . 14 59 28 . 10 . 1 Largest 2 | 1 2 1 2 2 . . 2 2 2 . 2 . 1 Hottest 110 | 40 80 40 90 90 . . 90 108 108 . 110 . . Shots Fired 353 | 26 89 4 49 16 . . 27 82 41 1 17 . 1 Gun 261 | 26 89 4 49 16 . . 27 21 13 1 15 . . Cannon 60 | . . . . . . . . 43 17 . . . . Launcher 31 | . . . . . . . . 18 11 . 2 . . Special 1 | . . . . . . . . . . . . . 1 Kinetic . | . . . . . . . . . . . . . . Thermal . | . . . . . . . . . . . . . . Explosive 31 | . . . . . . . . 18 11 . 2 . . Electromagnetic 321 | 26 89 4 49 16 . . 27 64 30 1 15 . . Robot Hit Streak 22 | 5 8 . 7 6 . . 14 11 22 3 6 . 2 Robot Miss Streak 4 | 2 3 4 4 1 . . 3 4 2 . 2 . . Penetration Max . | . . . . . . . . . . . . . . Secondary Targets 6 | . 1 . 3 2 . . . . . . . . . Max Gunslinging Chain 1 | . 1 . 1 1 . . . . . . . . . Shots Hit Robots 305 | 19 57 . 39 16 5 1 23 50 32 14 16 29 4 Core Hits 211 | 8 30 . 26 10 . . 18 48 42 2 19 6 2 Critical Kills . | . . . . . . . . . . . . . . Critical Parts Destroyed 9 | . . . . . . . . . . 4 2 3 . Critical Strikes 13 | 2 1 . . . . . . . . 4 2 4 . Corrupt 3 | 2 1 . . . . . . . . . . . . Smash 10 | . . . . . . . . . . 4 2 4 . Melee Attacks 64 | . . . . . 5 1 . . . 15 7 33 3 Impact 55 | . . . . . . . . . . 15 7 33 . Slashing 3 | . . . . . . . . . . . . . 3 Piercing . | . . . . . . . . . . . . . . Sneak Attacks 31 | . . . . . 5 1 . . . 6 5 11 3 Combat Hostiles 2 | . . . . . . . . . . . . 2 . Follow-up Attacks . | . . . . . . . . . . . . . . Damage Inflicted 11528 | 294 980 3 633 225 . 9 574 2834 1930 887 1253 1703 203 Guns 2630 | 250 761 . 527 216 . . 344 192 147 21 172 . . Cannons 915 | . . . . . . . . 517 398 . . . . Explosions 4602 | 44 214 . 92 . . . 230 2125 1383 . 514 . . Melee 3339 | . . . . . . . . . . 866 567 1703 203 Ramming 42 | . 5 3 14 9 . 9 . . 2 . . . . Kinetic . | . . . . . . . . . . . . . . Thermal 881 | 44 214 . 92 . . . 230 . 97 . 204 . . Explosive 3721 | . . . . . . . . 2125 1286 . 310 . . Electromagnetic 3545 | 250 761 . 527 216 . . 344 709 545 21 172 . . Impact 3136 | . . . . . . . . . . 866 567 1703 . Slashing 203 | . . . . . . . . . . . . . 203 Piercing . | . . . . . . . . . . . . . . Highest Corruption 5 | . 1 1 . . . . . . . 5 5 5 2 Average Corruption 3 | . 1 1 . . . . . . . 5 5 5 2 Corruption Purged . | . . . . . . . . . . . . . . Corruption Blocked 5 | . . . . . . . . . . 4 . 1 . Effects 59 | . 7 6 . . . . . . . 4 17 25 . Message Errors 16 | . 3 2 . . . . . . . . 6 5 . Matter Fused 17 | . 2 2 . . . . . . . 2 4 7 . Heat Flow Errors 7 | . 1 1 . . . . . . . 1 2 2 . Energy Discharges 5 | . 1 . . . . . . . . . 1 3 . Data Loss (minor) 4 | . . . . . . . . . . . 1 3 . Data Loss (major) 5 | . . 1 . . . . . . . . 1 3 . Misfires 3 | . . . . . . . . . . 1 2 . . Alerts 2 | . . . . . . . . . . . . 2 . Overload Shots . | . . . . . . . . . . . . . . Overflow Damage 1492 | . . . . . . . . 39 60 558 360 444 31 Projectiles 2 | . . . . . . . . . 1 . . 1 . Explosions 98 | . . . . . . . . 39 59 . . . . Melee 1392 | . . . . . . . . . . 558 360 443 31 Knockbacks 10 | . . . . . . . . . . 3 1 6 . Impact 9 | . . . . . . . . . . 3 1 5 . Kinetic . | . . . . . . . . . . . . . . Secondary 1 | . . . . . . . . . . . . 1 . Self-Inflicted Damage 252 | 10 34 . 31 . . . . . 118 . 59 . . Shots 8 | 1 1 . 1 . . . . . 4 . 1 . . Rammed 17 | . 3 1 7 3 . 2 . . 1 . . . . Targets Rammed 18 | . 3 2 7 3 . 2 . . 1 . . . . Kicked . | . . . . . . . . . . . . . . Crushed 1 | . . 1 . . . . . . . . . . . Highest Temperature 267 | 15 261 127 224 180 . . 189 232 267 194 247 171 . Average Temperature 73 | 8 60 70 92 76 . . 84 63 95 99 60 78 . Received Heat Transfer 2025 | . 297 . 153 18 . . 171 150 765 18 141 210 102 Siege Activations . | . . . . . . . . . . . . . . Martial Activations . | . . . . . . . . . . . . . . Shielding Activations . | . . . . . . . . . . . . . . Robots Disrupted 1 | . . . . . . . . . . . 1 . . Combat Hostiles 1 | . . . . . . . . . . . 1 . . Robots Corrupted 15 | . . . . . . . . 2 . 5 2 6 . Combat Hostiles 5 | . . . . . . . . 2 . 2 1 . . Parts Fried 32 | 2 3 . 2 2 . . . 6 . 6 3 8 . Impact Corruptions 43 | . . . . . . . . . . 16 11 16 . Robots Melted . | . . . . . . . . . . . . . . Combat Hostiles . | . . . . . . . . . . . . . . Parts Melted . | . . . . . . . . . . . . . . Heat Transferred 900 | . 300 . 150 . . . 200 . 100 . 150 . . Parts Sabotaged . | . . . . . . . . . . . . . . Parts Stolen 2 | . . . . . . . . . . . . . 2 Parts Stripped . | . . . . . . . . . . . . . . Power Chain Reactions 12 | 1 4 . 1 . . . 2 . 2 . 2 . . Alert | -11 -10 -10 -9 -9 -9 -8 -8 -8 -8 -7 -7 -7 -7 ------- Run | Yrd Mat Min Mat Min Exi Min Mat Gar Mat Fac Sto Rec Scr Maximum Alert Level 3 | . 1 . 1 . . . . 3 2 1 1 . . Low Security (%) 75 | 100 93 100 77 100 . 100 100 20 . 85 66 100 . Level 1 10 | . 6 . 22 . . . . 17 32 14 33 . . Level 2 10 | . . . . . . . . 36 67 . . . . Level 3 3 | . . . . . . . . 25 . . . . . Level 4 . | . . . . . . . . . . . . . . Level 5 . | . . . . . . . . . . . . . . High Security . | . . . . . . . . . . . . . . Max Security . | . . . . . . . . . . . . . . Peak Influence 820 | 10 207 70 265 100 . . 45 820 548 240 355 161 . Initial 399 | . . 70 . 100 . . . . 399 240 . 127 . Average 149 | 2 97 10 149 33 . . 7 494 428 92 116 51 . Influence Increases 3871 | 35 538 50 497 120 . . 125 830 543 124 679 330 . Destroy 0b10 Robot/C 1920 | . 320 20 320 100 . . 80 400 280 40 300 60 . Destroy 0b10 Robot/NC 275 | 35 25 . 15 . . . 10 15 35 35 45 60 . Destroy Leader 380 | . 66 . 54 20 . . 22 30 64 20 104 . . Allied During Kill 169 | . . . 10 . . . . 3 13 . 122 21 . Successful Hack 132 | . 12 . 20 . . . 8 7 5 14 27 39 . Select Force Hacks 240 | . 30 . 30 . . . . . 30 . . 150 . Disable Machine 195 | . 45 . 30 . . . . 15 45 15 45 . . Anti-Garrison Action 200 | . . . . . . . . 200 . . . . . Destroy Structure 195 | . 10 . 3 . . . 5 115 41 . 21 . . Partial Spotted 15 | . . . 15 . . . . . . . . . . Lose Combat Pursuer 150 | . 30 30 . . . . . 45 30 . 15 . . Influence Decreases 3871 | 35 356 232 240 353 24 . 125 10 833 654 352 657 . Entered New Map 1204 | . . 112 . 157 24 . . . 421 290 . 200 . Time Decay 2063 | 35 316 110 210 196 . . 105 . 262 344 162 323 . Lost Part 314 | . 40 10 10 . . . 20 10 110 20 50 44 . Lost Ally 290 | . . . 20 . . . . . 40 . 140 90 . Squads Dispatched 21 | . 3 1 2 . . . 1 . 5 1 8 . . Investigation 6 | . 2 1 1 . . . . . 2 . . . . Extermination 2 | . . . . . . . . . . 1 1 . . Reinforcement 6 | . 1 . 1 . . . . . 2 . 2 . . Assault 3 | . . . . . . . . . 1 . 2 . . Garrison 4 | . . . . . . . 1 . . . 3 . . Intercept . | . . . . . . . . . . . . . . Searches Triggered . | . . . . . . . . . . . . . . Construction Impeded 1 | . . . . . . . . . 1 . . . . Haulers Reinforced . | . . . . . . . . . . . . . . Active Scanning Responses . | . . . . . . . . . . . . . . Cargo Convoy Interrupts . | . . . . . . . . . . . . . . Stealth | -11 -10 -10 -9 -9 -9 -8 -8 -8 -8 -7 -7 -7 -7 --------- Run | Yrd Mat Min Mat Min Exi Min Mat Gar Mat Fac Sto Rec Scr Distress Signals 11 | . 2 . 2 . . . . . 5 . 2 . . Communications Jammed . | . . . . . . . . . . . . . . Distress Signals . | . . . . . . . . . . . . . . Times Spotted 147 | . 20 3 24 5 . . 9 22 26 2 17 4 15 Peak Tracking Total 27 | . 4 3 7 3 . . 3 5 11 1 7 3 27 Tactical Retreats 7 | . 1 1 . . . . . 3 1 . 1 . . Traps | -11 -10 -10 -9 -9 -9 -8 -8 -8 -8 -7 -7 -7 -7 ------- Run | Yrd Mat Min Mat Min Exi Min Mat Gar Mat Fac Sto Rec Scr Traps Triggered 10 | . 2 . . . . . . 6 1 . 1 . . Indirectly . | . . . . . . . . . . . . . . Trap Hack Attempts . | . . . . . . . . . . . . . . Triggered . | . . . . . . . . . . . . . . Disarmed . | . . . . . . . . . . . . . . Reprogrammed . | . . . . . . . . . . . . . . Reused . | . . . . . . . . . . . . . . Traps Extracted . | . . . . . . . . . . . . . . Installed . | . . . . . . . . . . . . . . Triggered . | . . . . . . . . . . . . . . Machines | -11 -10 -10 -9 -9 -9 -8 -8 -8 -8 -7 -7 -7 -7 ---------- Run | Yrd Mat Min Mat Min Exi Min Mat Gar Mat Fac Sto Rec Scr Machines Disabled 14 | . 3 . 2 . . . . 2 3 1 3 . . Max in Single Turn 2 | . 1 . 1 . . . . 1 2 1 1 . . Garrison Relay 1 | . . . . . . . . 1 . . . . . Machines Repaired . | . . . . . . . . . . . . . . Machines Dismantled . | . . . . . . . . . . . . . . Machines Sabotaged . | . . . . . . . . . . . . . . Overloaded Fab Kills . | . . . . . . . . . . . . . . Hacking | -11 -10 -10 -9 -9 -9 -8 -8 -8 -8 -7 -7 -7 -7 --------- Run | Yrd Mat Min Mat Min Exi Min Mat Gar Mat Fac Sto Rec Scr Machines Accessed 42 | . 7 1 4 . 2 . 4 4 4 2 3 11 . Terminals 26 | . 5 . 2 . . . 3 4 3 1 3 5 . Fabricators . | . . . . . . . . . . . . . . Repair Stations 2 | . 1 . 1 . . . . . . . . . . Recycling Units 9 | . 1 . . . . . . . 1 1 . 6 . Scanalyzers 1 | . . . 1 . . . . . . . . . . Garrison Access 1 | . . . . . . . 1 . . . . . . Total Hacks 90 | . 16 1 5 . 2 . 12 7 12 3 6 26 . Successful 47 | . 9 1 3 . 2 . 4 3 4 2 3 16 . Failed 43 | . 7 . 2 . . . 8 4 8 1 3 10 . Catastrophic 6 | . . . 2 . . . 2 1 . . . 1 . Database Lockouts . | . . . . . . . . . . . . . . Manual 45 | . 1 . 2 . 1 . 7 2 5 2 3 22 . Terminals 64 | . 13 . 2 . . . 10 7 10 2 6 14 . Fabricators . | . . . . . . . . . . . . . . Repair Stations 4 | . 2 . 2 . . . . . . . . . . Recycling Units 16 | . 1 . . . . . . . 2 1 . 12 . Scanalyzers 1 | . . . 1 . . . . . . . . . . Garrison Access 2 | . . . . . . . 2 . . . . . . Terminal Hacks 22 | . 6 1 . . 2 . 3 3 2 . 2 3 . Record 1 | . . . . . 1 . . . . . . . . Part Schematic 3 | . . . . . . . 1 . . . . 2 . Robot Analysis 2 | . 2 . . . . . . . . . . . . Prototype ID Bank 1 | . 1 . . . . . . . . . . . . Open Door 4 | . . 1 . . . . . 1 . . 2 . . Branch Access Points 1 | . 1 . . . . . . . . . . . . Emergency Access Points 1 | . . . . . . . . 1 . . . . . Terminal Index 2 | . . . . . . . 1 . . . . 1 . Alert Level 1 | . 1 . . . . . . . . . . . . Locate Traps 1 | . . . . . . . . . 1 . . . . Investigation Status 1 | . 1 . . . . . . . . . . . . Zone Layout 2 | . . . . . . . 1 . 1 . . . . Garrison Registry 1 | . . . . . . . . 1 . . . . . Proto ID Catalog 1 | . . . . . 1 . . . . . . . . Fabricator Hacks . | . . . . . . . . . . . . . . Repair Station Hacks 4 | . 2 . 2 . . . . . . . . . . Scan Component 2 | . 1 . 1 . . . . . . . . . . Repair 2 | . 1 . 1 . . . . . . . . . . Recycling Unit Hacks 1 | . . . . . . . . . . 1 . . . Retrieve Components 1 | . . . . . . . . . . 1 . . . Scanalyzer . | . . . . . . . . . . . . . . Garrison Access Hacks 1 | . . . . . . . 1 . . . . . . Unlock Access 1 | . . . . . . . 1 . . . . . . Unauthorized Hacks 19 | . 1 . 1 . . . . . 2 1 1 13 . Terminals 9 | . . . . . . . . . 1 1 1 6 . Assimilate 1 | . . . . . . . . . . . 1 . . Botnet 3 | . . . . . . . . . 1 1 . 1 . Skim 5 | . . . . . . . . . . . . 5 . Fabricators . | . . . . . . . . . . . . . . Repair Stations . | . . . . . . . . . . . . . . Recycling Units 9 | . 1 . . . . . . . 1 . . 7 . Reject 1 | . . . . . . . . . . . . 1 . Mask 1 | . . . . . . . . . . . . 1 . Tunnel 7 | . 1 . . . . . . . 1 . . 5 . Scanalyzers 1 | . . . 1 . . . . . . . . . . Extract 1 | . . . 1 . . . . . . . . . . Garrison Access . | . . . . . . . . . . . . . . Data Cores Recovered . | . . . . . . . . . . . . . . Used . | . . . . . . . . . . . . . . Hacking Detections 27 | . 4 . 3 . . . 4 3 3 2 1 7 . Full Trace Events 3 | . 1 . . . . . . 1 . . . 1 . Feedback Events 1 | . . . . . . . . . . . . 1 . Corruption 1 | . . . . . . . . . . . . 1 . Feedback Blocked . | . . . . . . . . . . . . . . Robot Schematics Acquired . | . . . . . . . . . . . . . . Robots Built . | . . . . . . . . . . . . . . Authchips . | . . . . . . . . . . . . . . Time . | . . . . . . . . . . . . . . Total Robot Build Rating . | . . . . . . . . . . . . . . Part Schematics Acquired 12 | . . . 9 . . . 1 . . . . 2 . Parts Built . | . . . . . . . . . . . . . . Authchips . | . . . . . . . . . . . . . . Time . | . . . . . . . . . . . . . . Total Part Build Rating . | . . . . . . . . . . . . . . Parts Repaired 2 | . 1 . 1 . . . . . . . . . . Time 39 | . 26 . 13 . . . . . . . . . . Parts Recycled . | . . . . . . . . . . . . . . Recycled Matter . | . . . . . . . . . . . . . . Retrieved Matter . | . . . . . . . . . . . . . . Retrieved Components 2 | . . . . . . . . . . 2 . . . Parts Scanalyzed . | . . . . . . . . . . . . . . Part Schematics Acquired . | . . . . . . . . . . . . . . Parts Damaged . | . . . . . . . . . . . . . . Bothacking | -11 -10 -10 -9 -9 -9 -8 -8 -8 -8 -7 -7 -7 -7 ------------ Run | Yrd Mat Min Mat Min Exi Min Mat Gar Mat Fac Sto Rec Scr Used RIF Installer 1 | . . . . . . . . 1 . . . . . Robots Hacked 6 | . . . . . 5 1 . . . . . . . Non-combat 4 | . . . . . 3 1 . . . . . . . Combat 2 | . . . . . 2 . . . . . . . . Robot Hacks Applied 6 | . . . . . 5 1 . . . . . . . parse_system 6 | . . . . . 5 1 . . . . . . . Relay Couplers Released 4 | . . . . . . . . 4 . . . . . Machine Destruction 4 | . . . . . . . . 4 . . . . . Fabnet Peak Effective % . | . . . . . . . . . . . . . . Robots Rewired 3 | . . . . . . . . 2 . . 1 . . Allies Hacked . | . . . . . . . . . . . . . . Hacks Repelled . | . . . . . . . . . . . . . . Allies | -11 -10 -10 -9 -9 -9 -8 -8 -8 -8 -7 -7 -7 -7 -------- Run | Yrd Mat Min Mat Min Exi Min Mat Gar Mat Fac Sto Rec Scr Total Allies 18 | . . 2 . . . . . 2 . . 14 . . Largest Group 10 | . . 2 2 . . . . 2 2 . 10 6 1 Highest-Rated Group 173 | . . 42 42 . . . . 59 59 . 173 143 10 Highest-Rated Ally 39 | . . 31 31 . . . . 39 39 . 32 31 10 Total Orders . | . . . . . . . . . . . . . . Ally Attacks 138 | . . . 19 . . . . 1 8 . 75 35 . Total Damage 2112 | . . . 268 . . . . 22 182 . 1074 566 . Kills 22 | . . . 7 . . . . 1 1 . 10 3 . Allies Corrupted . | . . . . . . . . . . . . . . Allies Melted . | . . . . . . . . . . . . . . Intel | -11 -10 -10 -9 -9 -9 -8 -8 -8 -8 -7 -7 -7 -7 ------- Run | Yrd Mat Min Mat Min Exi Min Mat Gar Mat Fac Sto Rec Scr Active Infowar (turns) 7153 | 72 797 646 499 626 1294 794 438 1251 563 173 . . . Optics 183 | . . . . . . . . . 10 173 . . . Terrain 869 | 72 797 . . . . . . . . . . . . Seismic 6101 | . . 646 499 626 1294 794 438 1251 553 . . . . Robot Analysis Total 2 | . 2 . . . . . . . . . . . . Derelict Logs Recovered 3 | . . 2 . 1 . . . . . . . . . Drone Launches . | . . . . . . . . . . . . . . Drone Recoveries . | . . . . . . . . . . . . . . Exploration | -11 -10 -10 -9 -9 -9 -8 -8 -8 -8 -7 -7 -7 -7 ------------- Run | Yrd Mat Min Mat Min Exi Min Mat Gar Mat Fac Sto Rec Scr Turns Passed 11044 | 195 917 659 499 626 1294 794 438 1251 577 805 636 1098 1255 Spaces Moved 8032 | 86 437 396 303 357 799 489 308 789 312 630 473 1076 1577 Core 160 | 10 . . . . . . . . 36 91 . 1 22 Treads 2911 | 76 437 396 56 322 799 489 32 19 268 6 1 10 . Legs . | . . . . . . . . . . . . . . Wheels 2794 | . . . 247 35 . . 276 770 . 217 472 768 9 Hover 2167 | . . . . . . . . . 8 316 . 297 1546 Flight . | . . . . . . . . . . . . . . Fastest Speed 44 | 50 160 160 95 115 160 160 105 105 50 56 80 44 44 Average Speed 117 | 147 160 160 118 155 160 160 111 124 140 111 87 83 76 Slowest Speed 240 | 160 160 160 240 160 160 160 225 155 155 180 160 170 124 Overloaded Moves . | . . . . . . . . . . . . . . Propulsion Burnouts . | . . . . . . . . . . . . . . Robots Hopped . | . . . . . . . . . . . . . . Potential Cave-ins . | . . . . . . . . . . . . . . Cave-ins Triggered . | . . . . . . . . . . . . . . Exploration Rate (%) 55 | 6 64 70 39 72 91 90 26 64 29 6 67 99 60 Regions Visited 13 Branch Regions 7 Pre-discovered Areas 10 | . 1 1 . 1 1 . . . 1 . . 5 . Known Exits Taken 4 | . 1 . . . . . 1 . . 1 . 1 . Unknown Exits Taken 8 | 1 . 1 1 1 1 1 . . 1 . 1 . . Scrap Searched 11 | . . 1 . 3 . 1 . . . . . . 6 Spaces Dug 11 | . . . . . . . . 4 . . 7 . . Terrain Destroyed 151 | 2 9 . 3 . . . 5 74 39 . 19 . . Melee . | . . . . . . . . . . . . . . Projectile . | . . . . . . . . . . . . . . AOE 151 | 2 9 . 3 . . . 5 74 39 . 19 . . Terrain Rammed . | . . . . . . . . . . . . . . Walls Destroyed . | . . . . . . . . . . . . . . Machines Disabled . | . . . . . . . . . . . . . . Actions | -11 -10 -10 -9 -9 -9 -8 -8 -8 -8 -7 -7 -7 -7 --------- Run | Yrd Mat Min Mat Min Exi Min Mat Gar Mat Fac Sto Rec Scr Total 9175 | 127 566 418 389 410 812 499 376 967 411 703 661 1215 1621 Wait 455 | 2 56 6 30 43 . 7 36 19 44 17 120 74 1 Move 8020 | 85 436 395 302 356 798 488 308 788 311 629 472 1075 1577 Hop . | . . . . . . . . . . . . . . Pick Up 73 | 7 10 5 6 . 6 . 5 1 4 13 4 4 8 Fast Attach 71 | 5 3 . 5 . . . 5 2 3 11 14 16 7 Attach 16 | 1 2 1 2 . . . 2 . 2 2 2 . 2 Detach 2 | . . . . . . . . . 1 1 . . . Swap 58 | . 3 2 4 . 2 1 . 15 8 5 9 2 7 Drop 85 | 1 6 3 8 . 1 . 6 3 9 10 12 11 15 Fire 222 | 26 47 4 25 8 . . 14 59 28 . 10 . 1 Melee 64 | . . . . . 5 1 . . . 15 7 33 3 Ram . | . . . . . . . . . . . . . . Kick . | . . . . . . . . . . . . . . Crush 18 | . 3 2 7 3 . 2 . . 1 . . . . Escape Stasis 39 | . . . . . . . . 39 . . . . . Rewire 52 | . . . . . . . . 41 . . 11 . . Trap . | . . . . . . . . . . . . . . Miscellaneous . | . . . . . . . . . . . . . . Route ------- -11/Scrapyard -10/Materials (discovered 3 exits: *Mat x2 / *Min) -10/Mines (discovered 2 exits: *Mat / [*Sub]) -9/Materials (discovered 2 exits: *Mat / [*Min]) -9/Mines (discovered 3 exits: *Mat x2 / *Exi) -9/Exiles (discovered 2 exits: [*Min x2]) -8/Mines (discovered 2 exits: *Mat x2) -8/Materials -8/Garrison (discovered 3 exits: *Mat x3) -8/Materials -7/Factory (discovered 2 exits: [*Fac] / *Sto) -7/Storage (discovered 2 exits: [*Fac] / *Rec) -7/Recycling (discovered 2 exits: [*Fac] / *Scr) -7/Scraptown (discovered 1 exit: [*Fac]) History --------- Turn | Location | Event 3 | -11/Scrapyard | Discovered new exit (range 16) 196 | -11/Scrapyard | Entered Materials 313 | -10/Materials | Build established: Mutant 562 | -10/Materials | Discovered new exit (range 15) 700 | -10/Materials | Identified exit to Mines 758 | -10/Materials | Repaired EM Pulse Gun 986 | -10/Materials | Discovered new exit (range 16) 1004 | -10/Materials | Core integrity fell below 50% 1040 | -10/Materials | Lost 3 parts (1n1u1w) 1113 | -10/Materials | Entered Mines 1582 | -10/Mines | Met a Derelict shopkeep closing up shop 1613 | -10/Mines | Discovered new exit (range 15) 1615 | -10/Mines | Discovered new exit (range 10) 1696 | -10/Mines | Learned Materials emergency access door positions 1772 | -10/Mines | Entered Materials 1772 | -9/Materials | Accompanied by 2 allies 1772 | -9/Materials | Evolved 2 slots: Propulsion x1, Utility x1 1777 | -9/Materials | Led the pair of lost Derelicts to an unsafe place 1975 | -9/Materials | Repaired Lgt. Treads 2096 | -9/Materials | Discovered new exit (range 4) 2179 | -9/Materials | Discovered new exit (range 15) 2271 | -9/Materials | Entered Mines 2289 | -9/Mines | Discovered new exit (range 12) 2411 | -9/Mines | Discovered new exit (range 16) 2559 | -9/Mines | Learned location of Storage (-7) 2702 | -9/Mines | Deemed a non-threat by the Exiles lab entrance 2704 | -9/Mines | Discovered new exit (range 5) 2820 | -9/Mines | Assembled infested the area 2897 | -9/Mines | Entered Exiles 2918 | -9/Exiles | Discovered new exit (range 15) 2973 | -9/Exiles | Met 8R-AWN 2997 | -9/Exiles | Met EX-HEX 3049 | -9/Exiles | Met EX-BIN 3069 | -9/Exiles | Aligned with FarCom system 3070 | -9/Exiles | Given EX-Vault access code 3110 | -9/Exiles | Opened EX-Vault 3125 | -9/Exiles | Found Latent Energy Streamer 3159 | -9/Exiles | Warned to stay clear of 0b10 Research branches 3207 | -9/Exiles | Met EX-DEC 3214 | -9/Exiles | Learned location of Zion (-7) 3520 | -9/Exiles | Visited The Gauntlet 3978 | -9/Exiles | Discovered new exit (range 14) 4191 | -9/Exiles | Left Exiles lab with Latent Energy Streamer 4191 | -9/Exiles | Entered Mines 4296 | -8/Mines | Discovered new exit (range 5) 4482 | -8/Mines | Found a Scrap Suit stashed away for nefarious purposes 4697 | -8/Mines | Discovered new exit (range 7) 4985 | -8/Mines | Entered Materials 4985 | -8/Materials | Evolved 2 slots: Propulsion x1, Utility x1 5080 | -8/Materials | Lost 3 parts (2n1w) 5336 | -8/Materials | Garrison activated, responded to threat 5423 | -8/Materials | Identified exit to Garrison 5423 | -8/Materials | Entered Garrison 5437 | -8/Garrison | Triggered checkpoint 5552 | -8/Garrison | Triggered checkpoint 5605 | -8/Garrison | Garrison Relay disabled 5649 | -8/Garrison | Triggered checkpoint 5790 | -8/Garrison | Discovered new exit (range 3) 6093 | -8/Garrison | Triggered checkpoint 6488 | -8/Garrison | Discovered new exit (range 25) 6488 | -8/Garrison | Discovered new exit (range 24) 6488 | -8/Garrison | Discovered new exit (range 90) 6652 | -8/Garrison | Installed Relay Interface Framework 6674 | -8/Garrison | Entered Materials 6674 | -8/Materials | Accompanied by 2 allies 7074 | -8/Materials | First assault squad dispatched 7225 | -8/Materials | Core integrity fell below 50% 7233 | -8/Materials | Discovered new exit (range 16) 7251 | -8/Materials | Entered Factory 7251 | -7/Factory | Evolved 2 slots: Propulsion x2 7258 | -7/Factory | Lost 11 parts (1p4n2u4w) 7451 | -7/Factory | Discovered new exit (range 9) 7638 | -7/Factory | Identified exit to Storage 7815 | -7/Factory | Discovered new exit (range 15) 8056 | -7/Factory | Entered Storage 8227 | -7/Storage | Found Prototype Launcher 8227 | -7/Storage | Identified Rocket Array 8398 | -7/Storage | Garrison activated, responded to threat 8441 | -7/Storage | Assisted by bots powering up and referring to "LRC-V3" 8465 | -7/Storage | Lost 5 parts (3n2w) 8501 | -7/Storage | Lost 4 allies 8503 | -7/Storage | Discovered new exit (range 8) 8633 | -7/Storage | Met a pair of Derelict thieves 8683 | -7/Storage | Used back door to open Recycling access 8683 | -7/Storage | Discovered new exit (range 5) 8692 | -7/Storage | Entered Recycling 8692 | -7/Recycling | Accompanied by 6 allies 8928 | -7/Recycling | Build established: Scavenger-Mutant 9181 | -7/Recycling | Lost 4 allies 9200 | -7/Recycling | Lost 6 parts (6n) 9210 | -7/Recycling | Scanned before Scraplab entrance 9316 | -7/Recycling | Learned Factory repair station intel 9378 | -7/Recycling | Learned 4 Lower Caves zone layouts 9379 | -7/Recycling | Discovered new exit (range 16) 9432 | -7/Recycling | Learned 4 Upper Caves zone layouts 9471 | -7/Recycling | Build established: Mutant 9477 | -7/Recycling | Identified exit to Scraptown 9513 | -7/Recycling | Learned location of 1 exit from Hub_04(d) 9539 | -7/Recycling | Learned location of 2 exits from Archives 9556 | -7/Recycling | Learned location of 1 exit from Hub_04(d) 9585 | -7/Recycling | Learned 2 Lower Caves zone layouts 9677 | -7/Recycling | Learned Extension non-interactive machine intel 9704 | -7/Recycling | Entered Scraplab 9790 | -7/Recycling | Entered Scraptown 9790 | -7/Scraptown | Accompanied by 1 ally 9790 | -7/Scraptown | System corruption cleaned by C-Scrubber 9907 | -7/Scraptown | Turned away by UFD registrar 9907 | -7/Scraptown | Turned away by UFD registrar 9916 | -7/Scraptown | Visited Shadow of the Wyrm 9939 | -7/Scraptown | Visited Comm Corps 9970 | -7/Scraptown | Visited Cyclists 9983 | -7/Scraptown | Visited Bundlers 10016 | -7/Scraptown | Visited Assassins FH 10030 | -7/Scraptown | Visited IN-MT5's Study 10045 | -7/Scraptown | Visited Fellowship of the Rings 10302 | -7/Scraptown | Discovered new exit (range 7) 11009 | -7/Scraptown | Attacked by Scraptown defenders 11030 | -7/Scraptown | Core integrity fell below 50% 11038 | -7/Scraptown | Core integrity fell below 20% 11045 | -7/Scraptown | Destroyed by IT-J5P(E) with Heavy Battle Rifle Last Messages --------------- 11028_ Penetrated by Bolt. 11028_ Gravmag System destroyed. 11029_ Penetrated by Bolt. 11029_ Imp. Deuterium Engine destroyed. 11032_ Bolt penetrates Wall. 11032_ Penetrated by Bolt. 11032_ Critical hit (Destroy). 11032_ Arm. Huge Wheel destroyed. 11032_ Dropped Med. Storage Unit. 11033_ 35-RE3(z) destroyed. 11034_ Acquired Mak. Leg. 11034_ Mak. Leg ripped off. 11035_ Penetrated by Bolt. 11035_ Bolt penetrates AY-GU3(E). 11035_ Penetrated by Bolt. 11035_ QT-CJO(p) suffers critical hit (Destroy). 11037_ Machine disabled. 11041_ 73-I6R(r) follow-up attacks with Ripteeth. 11043_ Penetrated by Bolt. 11043_ YU-G2M(k) exits level. Map ----- +----------------------------------------------------+ | | | | | | | | | | | | | | | | | | | | | | | | | | | | | | | | | | | | | | | ?????????????????????????????????????????????????? | | ##????????????????#########??????????????????????? | | ""#???????????????#"" ##?????????????????????? | | "#???????????????#" c #?####################? | | "#????########???#"" c ###"""""""""#"""""""""#? | | "#???#"""""""#???#####k #?#" "#" "#? | | "#???#"" ""#???????# @#?#" """ "#? | | "#???#"" ""#???????# r #?#" "#" "" "#? | | ""###?#""" ""#???????# #?#" """ "#" " "#? | | #?#"" ""#??????## ###" "#" "#? | | ###""" """########r ##"""""" ""#"" """"""#? | | r #? | | #? | | #? | | ###### ########### ##########"" """"#####? | | ###### ######????## ##????????#" "#????? | | #""""" """""#####?# #########?#" ""#????? | | #" " " #?# c""""""""#?#" """#????? | | " ""#" " " "### ###hp " ""#?#" """#????? | | " "#" " " "#"" """ E "#?#"""""""#????? | | " "#""""" """""#" "" " ""#?#########????? | | "###### ######" " x """"""""#??????????????? | | "#""""" """""#" ##"""####??????????????? | | " ""#" " " "#" "" " ##############?????????? | | # ###" " " "#" " #""""""""""""#########?? | | # " " "#"""""" #" "## # # #?? | | #####""""" """""####### % #" ##+###" "## " " ##? | | ????###### ######????## [#" # ""#" "#" "#? | | ########## ###########" !!#" "# #" "# #? | | ]"" "#""" # "# #? | | ! =% #" ######" "# #? | +----------------------------------------------------+ Best States ------------- Heat Dissipation 34 Energy Generation 16 Energy Capacity 290 Matter Stores 300 Matter Capacity 300 Sight Range 20 Terrain Scan Range 16 Terrain Scan Density 10 Additional Mass Support 9 Corruption Block 8 Armor Coverage 225 Evasion (%) 53 Melee Accuracy 6 Core Analysis 6 Recoil Reduction 3 Particle Charging 20 Offensive Hacking 10 Authchip Count 1 Item Schematics ----------------- Lrg. Matter Pod | -9/Materials | Extracted Lgt. Treads | -9/Materials | Extracted Imp. Ion Engine | -9/Materials | Extracted Sml. Storage Unit | -9/Materials | Extracted Mining Laser | -9/Materials | Extracted Structural Scanner | -9/Materials | Extracted Wheel | -9/Materials | Extracted Aluminum Leg | -9/Materials | Extracted Datajack | -9/Materials | Extracted EM Pulse Cannon | -8/Materials | Hacked Imp. Proton Missile Launcher | -7/Recycling | Hacked Smartbomb Launcher | -7/Recycling | Hacked Robot Schematics ------------------ None Fabricated ------------ Nothing Repaired ---------- EM Pulse Gun | 22% | -10/Materials Lgt. Treads | 24% | -9/Materials Alien Tech Used ----------------- None Achievements -------------- None Challenges ------------ None Game ------ Seed MolecularReactionSuite Manual? 0 Play Time 01:32:06 Cumulative 553.4 hours Start 2025.07.10 @ 13:27:26 End 2025.07.11 @ 11:45:06 Sessions 7 Manual Loads 0 Difficulty Rogue Special Mode None Game No. 319 Rogue 294 Adventurer 7 Explorer 18 Win Type - Total 44 Types 27/0/8/2/0/1/1/3/0/2 Lore% 94 Gallery% 90 Achievement% 81 Wizard Run 0 Options --------- Layout 0 ASCII 0 Keyboard 0 Movement Numpad Keybinds 0 Fullscreen 1 Font 12/Smallcaps Map View 83x54 Zoom Use 0% Tactical HUD 1 Map Filters NONE Filters NONE Steam 1 RUN: 2b477c0d-c9b8-4f9e-affc-3b741cb29f31